[Event "Croatian 1A League 2022"]
[Site "Porec"]
[Date "2022.09.30"]
[Round "7.11"]
[White "Zelcic, Robert"]
[Black "Glavas, Dragan"]
[Result "1-0"]
[ECO "C09"]
[WhiteElo "2495"]
[BlackElo "2249"]
[Annotator "TA"]
[PlyCount "165"]
[EventDate "2022.09.24"]
[EventType "team-tourn"]
[EventCountry "CRO"]
[SourceTitle "playchess.com"]
[Source "ChessBase"]
[SourceQuality "1"]
[TimeControl "40/5400+30:1800+30"]

{[%evp 12,165,-21,0,25,6,16,10,10,11,32,26,35,29,24,8,29,29,19,28,34,42,42,18,35,25,38,23,27,38,39,24,32,34,40,18,18,11,28,6,0,-60,0,0,0,0,13,10,54,46,85,88,85,90,75,74,96,110,116,117,116,113,112,102,157,150,158,151,147,141,148,145,139,150,185,171,270,287,261,271,330,342,725,295,295,288,339,308,407,381,465,450,462,457,553,474,481,466,474,474,825,825,712,661,1233,1200,1882,1249,1081,0,1699,1597,29956,29955,29961,29964,29964,29963,29966,29967,29967,29967,29968,29969,29969,29969,29969,29970,29969,29972,29967,29969,29969,29970,29970,29971,29970,29971,29971,29973,29974,29973,29974,29964,29962,12275,29976,29977,29976,29977,29974,29975,29974,29974,11673,5591]} 1. e4 {[%emt 0:00:03]} e6 {[%emt 0:00:34]} 2. d4 {[%emt 0:00:06]} d5 {[%emt 0:00:13]} 3. Nd2 {[%emt 0:00:05][%cal Bb1d2,Bd2b3,Bb3d4][%mdl 32]} c5 {[%emt 0:01:42]} 4. Ngf3 {[%emt 0:01:37]} Nc6 {[%emt 0:01:28]} 5. exd5 {[%emt 0:01:32]} exd5 {[%emt 0:02:49]} 6. dxc5 {[%emt 0:03:11]} Bxc5 {[%emt 0:00:51]} 7. Nb3 {[%emt 0:00:29]} Be7 {[%emt 0:06:29] C09: French Tarrasch: 3...c5 4 exd5 exd5 5 Ngf3 Nc6.} 8. Be2 {[%emt 0:04:48]} Nf6 {[%emt 0:00:23]} 9. O-O {[%emt 0:00:05]} O-O {[%emt 0:00:28] The position is equal.} 10. c3 {[%emt 0:01:00]} Qc7 {[%emt 0:10:37]} 11. Bg5 {[%emt 0:03:19]} Be6 {[%emt 0:02:13]} 12. Nbd4 {[%emt 0:04:49]} Rae8 {[%emt 0:04:12] [#]} 13. Qc1 $146 {[%emt 0:19:56]} ({Predecessor:} 13. Re1 h6 14. Bh4 Ne4 15. Bxe7 Rxe7 16. Bd3 Bg4 17. Qb3 Rd8 18. h3 {½-½ (76) Mista,A (2606)-Wojtaszek,R (2734) Poland 2017}) 13... a6 {[%emt 0:04:03]} 14. Nxc6 {[%emt 0:02:00]} Qxc6 {[%emt 0:00:43]} 15. Nd4 {[%emt 0:00:17]} Qc8 {[%emt 0:06:34]} 16. Bd3 {[%emt 0:02:09]} Ne4 {[%emt 0:08:36]} 17. Bf4 {[%emt 0:04:49]} Bf6 {[%emt 0:01:43]} 18. f3 {[%emt 0:01:59]} Nc5 {[%emt 0:02:43]} 19. Bc2 {[%emt 0:00:56]} Bd7 {[%emt 0:00:57]} 20. Bd6 {[%emt 0:07:06]} Be7 {[%emt 0:00:35]} 21. Bg3 {[%emt 0:02:00]} g6 {[%emt 0:05:15]} 22. Qd2 {[%emt 0:06:51]} (22. Bf4 {keeps more tension.} Ne6 23. Nxe6 fxe6 24. Be5) 22... Ne6 {[%emt 0:01:15]} 23. Nb3 {[%emt 0:00:41]} Rd8 {[%emt 0:01:04][%cal Od5d4]} 24. Rfe1 {[%emt 0:00:42]} ({Much weaker is} 24. Qxd5 Bb5 25. Qe5 Bxf1 26. Rxf1 Rfe8 $17) 24... Ba4 {[%emt 0:03:49][%cal Od5d4]} 25. Be5 {[%emt 0:07:45] Against d4} d4 {[%emt 0:08:15]} 26. Qe2 {[%emt 0:10:28]} ({White should play} 26. cxd4 $11 Bxb3 27. Bxb3 Nxd4 28. Qh6 (28. Bxd4 Rxd4 29. Qc3 Qxc3 $15)) 26... Bxb3 {[%emt 0:03:46]} ({Better is} 26... Rfe8 $15) 27. Bxb3 $11 {[%emt 0:09:59]} Bc5 {[%emt 0:08:40] [#] White must now prevent ...d3+.} 28. Kh1 {[%emt 0:00:38]} Rfe8 {[%emt 0:01:38]} 29. Bf6 {[%emt 0:01:19] This bishop pair is nice.} d3 {[%emt 0:01:59]} 30. Qd2 {[%emt 0:00:25]} Be7 {[%emt 0:02:47]} 31. Bxe6 {[%emt 0:01:00]} fxe6 {[%emt 0:00:15]} 32. Bd4 {[%emt 0:01:02]} Bc5 {[%emt 0:01:32]} 33. Qxd3 {[%emt 0:00:54]} Bxd4 {[%emt 0:01:28]} 34. cxd4 {[%emt 0:00:02]} Rd5 {[%emt 0:00:28]} 35. Re4 {[%emt 0:00:10]} Qd7 {[%emt 0:01:01]} 36. h3 {[%emt 0:00:20]} Rd8 {[%emt 0:00:25][%cal Rd5d4]} 37. Qe3 {[%emt 0:00:27]} Kf7 {[%emt 0:02:37]} (37... Rxd4 $142 38. Rxd4 (38. Rxe6 Rd3 $16) 38... Qxd4 39. Qxe6+ Kh8) 38. Re1 $16 {[%emt 0:00:11][%cal Re4e6]} Re8 {[%emt 0:00:59]} 39. Rc1 {[%emt 0:02:37][%cal Be1c1,Bc1c3,Bc3c7][%mdl 32] [#] And now Qf4+ would win.} Rc8 {[%emt 0:02:11]} 40. Rc3 {[%emt 0:00:00]} Rc6 {[%emt 0:00:00]} 41. Qf4+ {[%emt 0:03:07]} Kg7 {[%emt 0:03:40]} 42. Qb8 {[%emt 0:02:44] White is more active.} Rb5 {[%emt 0:04:35]} 43. Rf4 {[%emt 0:01:16][%csl Gf4][%cal Rb8f8]} Qd6 {[%emt 0:01:26] Prevents Qf8+.} (43... Qe7 {was called for.} 44. a4 Rxc3 45. bxc3 (45. axb5 Rc7 $14) 45... Rb1+ 46. Kh2 Re1) 44. Qxd6 $18 {[%emt 0:00:55]} Rxd6 {[%emt 0:00:08][%mdl 4096] Endgame KRR-KRR} 45. Rc7+ {[%emt 0:00:03]} Kh6 {[%emt 0:01:11]} 46. Rff7 {[%emt 0:00:13][%csl LRb7,LRh7] Intending f4 and mate.} Rxd4 {[%emt 0:01:04]} (46... Kh5 47. Rxh7+ Kg5 48. Rxb7 Rxd4) 47. Rxh7+ {[%emt 0:00:20]} (47. f4 $142 Rxf4 48. Rxf4) 47... Kg5 {[%emt 0:00:09]} 48. Rxb7 {[%emt 0:00:18]} Rdb4 {[%emt 0:01:13]} 49. Rxb5+ {[%emt 0:01:47]} Rxb5 {[%emt 0:04:31] KR-KR} 50. b3 {[%emt 0:01:21][%cal Bb2b3,Bb3b4][%mdl 32]} Ra5 {[%emt 0:02:10]} 51. a4 {[%emt 0:00:04]} Re5 {[%emt 0:00:46]} 52. Rb7 {[%emt 0:01:51]} Re3 {[%emt 0:01:44]} 53. Kh2 {[%emt 0:01:19]} e5 {[%emt 0:03:27]} 54. b4 {[%emt 0:00:30]} Ra3 {[%emt 0:00:44]} 55. a5 {[%emt 0:00:08]} Rb3 {[%emt 0:00:09]} (55... Re3 $142 56. Rb6 Rb3) 56. Rb6 {[%emt 0:00:17]} Rb2 {[%emt 0:00:47]} 57. Kg3 {[%emt 0:00:13]} Rb3 {[%emt 0:01:14]} 58. h4+ {[%emt 0:04:54]} Kf5 {[%emt 0:01:21]} 59. Kh2 {[%emt 0:04:34]} Rb2 {[%emt 0:02:12]} 60. Kg3 $2 {[%emt 0:05:50]} ({White has to play} 60. Rxa6 $18 Rxb4 61. g4+ Kf4 62. Rf6+ Ke3 63. a6) 60... Rb1 $2 {[%emt 0:00:41][%mdl 8192]} (60... Rb3 $11 61. Rxa6 Rxb4) 61. Rxa6 {[%emt 0:00:18] Ra8 is the strong threat.} Rxb4 {[%emt 0:00:14]} 62. Ra8 {[%emt 0:00:03]} Ra4 {[%emt 0:00:25]} 63. a6 {[%emt 0:00:04][%cal Ba5a6,Ba6a7][%mdl 32]} Kf6 {[%emt 0:00:10]} 64. a7 {[%emt 0:01:16]} Kg7 {[%emt 0:00:09]} 65. Kf2 {[%emt 0:00:04]} Ra3 {[%emt 0:01:15]} 66. Ke2 {[%emt 0:00:10]} Kh7 {[%emt 0:00:11]} 67. Kd2 {[%emt 0:00:03]} Kg7 {[%emt 0:00:06]} 68. Kc2 {[%emt 0:00:03]} Kh7 {[%emt 0:00:06]} 69. Kb2 {[%emt 0:00:04]} Ra6 {[%emt 0:00:22]} 70. Kb3 {[%emt 0:00:08]} Kg7 {[%emt 0:00:11]} 71. Kb4 {[%emt 0:00:04]} Ra1 {[%emt 0:00:12]} 72. Kc5 {[%emt 0:00:09]} Ra2 {[%emt 0:00:06]} 73. Kd6 {[%emt 0:00:34]} Ra5 {[%emt 0:00:30]} 74. Ke6 {[%emt 0:00:00]} Ra6+ {[%emt 0:01:38]} 75. Kxe5 {[%emt 0:00:00]} Ra5+ {[%emt 0:00:10]} 76. Kf4 {[%emt 0:00:00]} Kh7 {[%emt 0:00:19]} 77. Kg4 {[%emt 0:00:04]} Kg7 {[%emt 0:00:05]} 78. f4 {[%emt 0:00:05]} (78. g3 $142 Ra4+ 79. f4 Kh7 80. h5 gxh5+ 81. Kxh5 Kg7 82. f5 Ra2 83. Kg5) 78... Kh7 {[%emt 0:00:35]} 79. Kf3 {[%emt 0:00:54]} Kg7 {[%emt 0:00:46]} 80. g4 {[%emt 0:00:06]} Ra3+ {[%emt 0:00:16]} 81. Ke2 {[%emt 0:00:04]} Ra2+ {[%emt 0:01:11]} 82. Kd3 {[%emt 0:00:07]} Ra3+ {[%emt 0:00:50]} 83. Kc2 {[%emt 0:00:06] Weighted Error Value: White=0.16 (very precise) /Black=0.23 (precise)} 1-0

[Event "Croatian 1A League 2022"]
[Site "Porec"]
[Date "2022.09.30"]
[Round "7.12"]
[White "Rubil, Marko"]
[Black "Rogulj, Branko"]
[Result "1-0"]
[ECO "C77"]
[WhiteElo "2270"]
[BlackElo "2354"]
[Annotator "TA"]
[PlyCount "85"]
[EventDate "2022.09.24"]
[EventType "team-tourn"]
[EventCountry "CRO"]
[SourceTitle "playchess.com"]
[Source "ChessBase"]
[SourceQuality "1"]
[TimeControl "40/5400+30:1800+30"]

{[%evp 18,85,12,0,11,0,16,16,17,-31,-7,-2,0,0,1,-12,-14,-17,-17,-12,19,0,18,0,15,0,7,0,43,37,54,27,30,39,35,7,31,0,45,41,50,0,9,13,41,15,16,16,24,16,20,4,16,0,172,0,0,0,0,0,0,0,0,-4,-3,-33,-29,-40,723,714]} 1. e4 {[%emt 0:02:51]} e5 {[%emt 0:00:07]} 2. Nf3 {[%emt 0:00:26]} Nc6 {[%emt 0:00:07]} 3. Bb5 {[%emt 0:00:06]} Nf6 {[%emt 0:00:25]} 4. d3 {[%emt 0:02:36]} d6 {[%emt 0:04:54]} 5. O-O {[%emt 0:00:39]} g6 {[%emt 0:01:42]} 6. c3 {[%emt 0:13:03]} Bg7 {[%emt 0:00:24]} 7. Re1 {[%emt 0:00:12]} O-O {[%emt 0:00:39]} 8. Nbd2 {[%emt 0:00:04]} a6 {[%emt 0:03:56]} 9. Ba4 {[%emt 0:00:10]} b5 {[%emt 0:00:46]} 10. Bb3 {[%emt 0:08:10]} Bb7 {[%emt 0:06:38] C77: Ruy Lopez: 3...a6 4 Ba4 Nf6, unusual lines.} 11. Nf1 {[%emt 0:03:52]} Na5 {[%emt 0:04:03]} 12. Bc2 {[%emt 0:00:07]} c5 {[%emt 0:00:15] The position is equal.} 13. h3 {[%emt 0:02:27]} (13. Bg5 $11) 13... Re8 {[%emt 0:04:02]} 14. Bg5 {[%emt 0:11:52] [#]} d5 $146 {[%emt 0:07:12]} ({Predecessor:} 14... h6 15. Bxf6 Qxf6 16. Ne3 Qd8 17. a3 Nc6 18. h4 h5 19. Bb3 Rf8 20. g3 Ne7 {1-0 (35) Polzin,R (2465)-Ris,R (2394) Germany 2013}) 15. Ne3 {[%emt 0:15:01]} dxe4 {[%emt 0:13:10]} 16. dxe4 {[%emt 0:06:41]} Qxd1 {[%emt 0:02:47]} 17. Nxd1 {[%emt 0:00:11]} Nc4 {[%emt 0:04:27]} 18. Nh2 {[%emt 0:05:01][%cal Bf3h2,Bh2f1,Bf1d2][%mdl 32]} Nd7 {[%emt 0:03:11]} 19. Nf1 {[%emt 0:01:47]} f6 {[%emt 0:01:26]} 20. Bc1 {[%emt 0:00:09]} Ndb6 {[%emt 0:01:08]} 21. a4 {[%emt 0:08:15]} Nd6 {[%emt 0:05:46]} (21... Nxa4 $2 22. b3 $18) 22. Be3 {[%emt 0:06:39]} Nd7 {[%emt 0:03:28]} ({But not} 22... bxa4 23. Bxc5 Ndc4 24. Bxa4 $16) 23. f3 {[%emt 0:02:16]} Kf7 {[%emt 0:04:06]} 24. Nd2 {[%emt 0:00:24]} Rec8 {[%emt 0:02:16]} 25. Nb3 {[%emt 0:02:07]} Nc4 {[%emt 0:03:33]} 26. Bc1 {[%emt 0:00:08]} Ndb6 {[%emt 0:02:22]} 27. Nd2 {[%emt 0:01:28]} Ke7 {[%emt 0:05:14]} 28. Nxc4 {[%emt 0:02:48]} Nxc4 {[%emt 0:00:08]} 29. Ne3 {[%emt 0:03:10]} (29. Bd3 $14) 29... Nxe3 {[%emt 0:07:20]} 30. Bxe3 {[%emt 0:00:01]} Ke6 {[%emt 0:00:36]} 31. Red1 {[%emt 0:00:35]} Bf8 {[%emt 0:00:28]} 32. Kf2 {[%emt 0:00:24]} c4 {[%emt 0:01:35]} 33. b3 {[%emt 0:01:51]} Bc6 {[%emt 0:02:26]} 34. b4 {[%emt 0:01:13]} Be7 {[%emt 0:02:18]} 35. Ke2 {[%emt 0:00:08]} f5 $2 {[%emt 0:00:18] [#]} (35... h5 $11) 36. Ra2 $2 {[%emt 0:00:29]} (36. exf5+ $18 gxf5 37. g4) 36... f4 $11 {[%emt 0:01:16]} 37. Bf2 {[%emt 0:00:26]} g5 {[%emt 0:02:00]} 38. Rda1 {[%emt 0:00:16]} h6 {[%emt 0:00:52]} 39. Ke1 {[%emt 0:01:24]} h5 {[%emt 0:00:42]} 40. Ke2 {[%emt 0:00:00]} Rg8 {[%emt 0:00:00]} 41. axb5 {[%emt 0:20:14]} axb5 {[%emt 0:03:04]} 42. Ra6 {[%emt 0:00:57]} Rgc8 {[%emt 0:01:13][%mdl 8192] [#]} (42... Bd6 $15) 43. Rxc6+ $1 {[%emt 0:00:10][%mdl 512] Weighted Error Value: White=0.19 (very precise) /Black=0.20 (precise)} 1-0

[Event "Croatian 1A League 2022"]
[Site "Porec"]
[Date "2022.09.30"]
[Round "7.13"]
[White "Kaczur, Florian"]
[Black "Cheparinov, Ivan"]
[Result "0-1"]
[ECO "B45"]
[WhiteElo "2483"]
[BlackElo "2686"]
[Annotator "TA"]
[PlyCount "140"]
[EventDate "2022.09.24"]
[EventType "team-tourn"]
[EventCountry "CRO"]
[SourceTitle "playchess.com"]
[Source "ChessBase"]
[SourceQuality "1"]
[TimeControl "40/5400+30:1800+30"]

{[%evp 27,140,23,0,19,19,2,38,12,12,22,18,33,29,24,25,21,37,13,47,2,3,0,0,0,0,-53,-42,-25,0,0,0,0,0,0,0,0,16,0,0,0,0,0,8,6,14,0,8,8,6,0,0,0,0,0,0,0,0,0,0,0,0,0,0,0,0,0,0,0,0,0,0,0,0,0,0,-2,0,0,0,-7,0,0,0,0,0,-370,-370,-370,-384,-156,-155,-8031,-6510,-783,0,-11,0,-29973,-29973,-29972,-29974,-29974,-29975,-29976,-29977,-29977,-29978,-29978,-29979,-29980,-29981,-29981,-29982,-29982,-29982]} 1. e4 {[%emt 0:00:03]} c5 {[%emt 0:01:27]} 2. Nf3 {[%emt 0:00:09]} e6 {[%emt 0:00:08]} 3. d4 {[%emt 0:00:57]} cxd4 {[%emt 0:00:05]} 4. Nxd4 {[%emt 0:00:05]} Nf6 {[%emt 0:00:04]} 5. Nc3 {[%emt 0:00:13]} Nc6 {[%emt 0:00:04]} 6. Nxc6 {[%emt 0:01:30]} bxc6 {[%emt 0:00:06]} 7. e5 {[%emt 0:00:06]} Nd5 {[%emt 0:00:05]} 8. Ne4 {[%emt 0:00:05]} Qc7 {[%emt 0:00:15]} 9. f4 {[%emt 0:00:42]} Qb6 {[%emt 0:00:27]} 10. c4 {[%emt 0:01:32]} Bb4+ {[%emt 0:00:09]} 11. Ke2 {[%emt 0:00:26]} f5 {[%emt 0:00:10]} 12. Nf2 {[%emt 0:02:00]} Ba6 {[%emt 0:00:07]} 13. Kf3 {[%emt 0:00:33]} Ne7 {[%emt 0:00:07][%cal Bd5e7,Be7g6,Bg6e5,Be5c6,Bc6d4][%mdl 32]} 14. Be3 {[%emt 0:00:43]} Bc5 {[%emt 0:00:05]} 15. Bxc5 {[%emt 0:00:05] B45: Sicilian Four Knights.} Qxc5 {[%emt 0:00:05]} 16. Qd6 {[%emt 0:01:13]} Qb6 {[%emt 0:00:05]} 17. Be2 {[%emt 0:10:45] White is slightly better.} g5 {[%emt 0:01:39]} 18. fxg5 {[%emt 0:06:35] aiming for Rad1.} Ng6 $1 {[%emt 0:04:03] ...Nh4+ is the strong threat. The board is on fire.} 19. h4 {[%emt 0:25:58]} Qb8 {[%emt 0:00:24]} ({Don't play} 19... Qxb2 20. Nd3 Qd2 21. Kf2 $16) 20. Qxb8+ {[%emt 0:01:15]} Rxb8 {[%emt 0:00:05]} 21. b3 {[%emt 0:01:30] Strongly threatening Nd3.} Nxe5+ {[%emt 0:00:26] [#]} 22. Ke3 $146 {[%emt 0:01:14]} ({Predecessor:} 22. Kf4 Ng6+ 23. Kg3 d6 24. h5 Ne5 25. Rhe1 Rg8 26. Nh3 c5 27. Rad1 Kd7 28. Bf3 {1-0 (60) Milliet,S (2390)-Loiseau,Q (2455) Chartres 2021}) 22... O-O {[%emt 0:07:04]} 23. Rac1 {[%emt 0:12:00]} c5 {[%emt 0:12:44]} 24. g3 {[%emt 0:02:00]} Nc6 {[%emt 0:04:23]} 25. Nd3 {[%emt 0:02:25]} d6 {[%emt 0:00:13]} 26. g4 {[%emt 0:02:39]} (26. Nf4 $11) 26... Nd4 $15 {[%emt 0:02:51][%cal Of5f4]} 27. gxf5 {[%emt 0:04:25]} exf5 {[%emt 0:15:20]} 28. Bh5 {[%emt 0:00:53] Prevents Rfe8+.} Rbe8+ {[%emt 0:01:57]} 29. Kd2 {[%emt 0:03:07]} Re4 {[%emt 0:11:39]} 30. Nf2 {[%emt 0:02:10]} Re5 {[%emt 0:00:47]} 31. Nd3 {[%emt 0:00:56]} Bb7 {[%emt 0:01:41]} 32. Rhf1 {[%emt 0:01:10]} Re4 {[%emt 0:01:38]} 33. Nf4 {[%emt 0:01:31]} a5 {[%emt 0:00:44]} 34. Rce1 {[%emt 0:02:16]} Bc6 {[%emt 0:06:00]} 35. Rxe4 {[%emt 0:05:07]} fxe4 {[%emt 0:06:27]} 36. Be2 {[%emt 0:00:56]} Nf3+ {[%emt 0:01:59]} 37. Bxf3 {[%emt 0:03:31]} exf3 {[%emt 0:00:03]} 38. Nd5 {[%emt 0:03:23]} Bxd5 {[%emt 0:00:25]} 39. cxd5 $11 {[%emt 0:00:02][%mdl 4096] Endgame KR-KR} Rf4 {[%emt 0:01:07]} 40. Ke3 {[%emt 0:00:00]} Rxh4 {[%emt 0:00:00]} 41. Rxf3 {[%emt 0:01:38]} Rd4 {[%emt 0:02:27]} 42. Rf5 {[%emt 0:00:36]} Kg7 {[%emt 0:01:06]} 43. Kf3 {[%emt 0:04:20]} Rd2 {[%emt 0:11:34]} 44. Kg4 {[%emt 0:05:19]} Rg2+ {[%emt 0:04:38]} 45. Kh5 {[%emt 0:05:38]} Rh2+ {[%emt 0:06:11]} 46. Kg4 {[%emt 0:00:02]} Rd2 {[%emt 0:00:19]} 47. Kh4 {[%emt 0:04:42]} Rd4+ {[%emt 0:03:52]} 48. Kg3 {[%emt 0:01:57]} Kg6 {[%emt 0:02:50]} 49. Rf6+ {[%emt 0:00:08]} Kxg5 {[%emt 0:00:03]} 50. Rxd6 {[%emt 0:00:04]} h5 {[%emt 0:03:06][%cal Bh7h5,Bh5h4][%mdl 32]} 51. Rd8 {[%emt 0:02:26]} h4+ {[%emt 0:03:17]} 52. Kf3 {[%emt 0:00:46]} Kf5 {[%emt 0:00:05]} 53. Ra8 {[%emt 0:04:49]} a4 {[%emt 0:07:10] And now ...h3 would win.} 54. Ra5 {[%emt 0:00:32]} axb3 {[%emt 0:05:58]} 55. axb3 {[%emt 0:00:45]} Rd3+ {[%emt 0:00:12]} 56. Kg2 $2 {[%emt 0:00:37][%mdl 8192] [#]} (56. Ke2 $11 {and White has nothing to worry.} Rxd5 57. Kf3) 56... Rc3 $1 $19 {[%emt 0:00:04]} 57. d6 {[%emt 0:01:21]} Ke6 {[%emt 0:00:15]} 58. Rb5 {[%emt 0:00:44]} (58. b4 $19 cxb4 59. Rb5) 58... Kxd6 $17 {[%emt 0:00:18]} 59. b4 $2 {[%emt 0:00:16] [#]} (59. Kh2 $17) 59... c4 $1 $19 {[%emt 0:00:41] ( -> ...Rb3)} 60. Rc5 {[%emt 0:00:19]} Rg3+ $2 {[%emt 0:00:05]} (60... h3+ $19 61. Kh2 Ke6) 61. Kh2 {[%emt 0:01:15]} c3 {[%emt 0:00:04]} 62. Rc8 $2 {[%emt 0:00:43][%mdl 8192]} (62. Kh1 $11) 62... Kd5 {[%emt 0:00:39] Black mates.} 63. b5 {[%emt 0:00:26]} Kd4 {[%emt 0:01:21]} 64. b6 {[%emt 0:00:43]} Rg7 {[%emt 0:00:02]} 65. Kh3 {[%emt 0:03:26]} Rb7 {[%emt 0:00:34]} 66. Rc6 {[%emt 0:00:06]} Kd3 {[%emt 0:00:03]} 67. Kxh4 {[%emt 0:00:06]} c2 {[%emt 0:00:03]} 68. Rd6+ {[%emt 0:00:11]} Kc3 {[%emt 0:00:04]} 69. Rc6+ {[%emt 0:00:04]} Kb2 {[%emt 0:00:03]} 70. Kg4 {[%emt 0:00:09]} c1=Q {[%emt 0:00:04] Weighted Error Value: White=0.35/Black=0.11 (very precise)} 0-1

[Event "Croatian 1A League 2022"]
[Site "Porec"]
[Date "2022.09.30"]
[Round "7.14"]
[White "Hracek, Zbynek"]
[Black "Janzelj, Tim"]
[Result "1-0"]
[ECO "B10"]
[WhiteElo "2556"]
[BlackElo "2456"]
[Annotator "TA"]
[PlyCount "103"]
[EventDate "2022.09.24"]
[EventType "team-tourn"]
[EventCountry "CRO"]
[SourceTitle "playchess.com"]
[Source "ChessBase"]
[SourceQuality "1"]
[TimeControl "40/5400+30:1800+30"]

{[%evp 9,103,0,-8,-12,22,11,16,25,25,20,33,35,39,36,31,31,32,37,34,32,43,42,89,71,67,67,89,82,116,133,147,133,111,71,70,69,59,75,77,82,68,40,65,0,95,102,229,199,234,234,227,228,245,237,226,246,237,256,245,229,263,133,256,250,228,238,197,70,79,121,139,144,232,254,264,186,214,0,190,78,321,322,322,300,268,243,658,527,696,689,891,858,763,715,29971,29970]} 1. e4 {[%emt 0:00:04]} c6 {[%emt 0:00:07]} 2. Nf3 {[%emt 0:00:27]} d5 {[%emt 0:00:07]} 3. d3 {[%emt 0:00:05]} dxe4 {[%emt 0:00:14]} 4. dxe4 {[%emt 0:00:02]} Qxd1+ {[%emt 0:00:06]} 5. Kxd1 {[%emt 0:00:07]} Nf6 {[%emt 0:00:11]} 6. Nbd2 {[%emt 0:00:18] B10: Caro-Kann: 2 d3 and 2 c4.} g6 {[%emt 0:12:41] 6...g6 scores better than 6...Bg4.} 7. Ne5 {[%emt 0:04:35]} Nbd7 {[%emt 0:06:09]} 8. Nd3 {[%emt 0:04:46] The position is equal.} Bh6 {[%emt 0:06:59]} 9. f3 $1 {[%emt 0:01:55]} O-O {[%emt 0:01:12]} 10. Nc4 {[%emt 0:16:30]} Bxc1 {[%emt 0:00:18]} 11. Kxc1 {[%emt 0:00:02] [#]} b6 $146 {[%emt 0:15:15]} ({Predecessor:} 11... a5 12. a4 b6 13. b3 Ba6 14. Nde5 Bxc4 15. Nxc4 Rfd8 16. Kb2 Kf8 17. Be2 Ke8 {1-0 (37) Sanal,V (2601)-Yuan,Q (2373) Chess.com INT 2022}) 12. a4 {[%emt 0:05:44]} Ba6 {[%emt 0:02:39]} 13. Nde5 {[%emt 0:06:21]} Bxc4 {[%emt 0:13:37]} 14. Nxc4 {[%emt 0:00:10]} Rfd8 {[%emt 0:00:40]} 15. c3 {[%emt 0:08:19]} e5 {[%emt 0:01:15]} (15... h5 $14) 16. Kc2 {[%emt 0:00:28]} Kf8 {[%emt 0:00:05]} 17. g3 {[%emt 0:02:00]} Ne8 {[%emt 0:00:58]} 18. h4 {[%emt 0:09:05]} h5 {[%emt 0:05:09]} 19. Bh3 {[%emt 0:00:31]} f6 {[%emt 0:00:13]} 20. b4 {[%emt 0:10:53] Against Nc5} Ke7 {[%emt 0:00:42]} 21. Rad1 {[%emt 0:02:03] White has more active pieces. The black rooks are badly placed.} Nf8 {[%emt 0:01:30]} 22. f4 {[%emt 0:00:39]} Nd6 {[%emt 0:10:20]} 23. Nxd6 {[%emt 0:03:26]} Rxd6 {[%emt 0:00:02]} 24. Rxd6 {[%emt 0:00:43]} Kxd6 $14 {[%emt 0:00:01][%mdl 4096] Endgame KRB-KRN} 25. f5 $1 {[%emt 0:06:08] Inhibits Ne6.} gxf5 {[%emt 0:04:37]} 26. Rf1 {[%emt 0:01:29]} (26. exf5 a5 $11) (26. Bxf5 $14 Ne6 27. g4) 26... f4 {[%emt 0:11:21]} (26... a5 $11 {remains equal.}) 27. gxf4 $16 {[%emt 0:00:06]} Ng6 {[%emt 0:04:09]} (27... exf4 $16 {was necessary.} 28. Rxf4 Ke7) 28. Rd1+ $18 {[%emt 0:03:52]} Ke7 {[%emt 0:00:02]} 29. Rd7+ {[%emt 0:00:06]} Kf8 {[%emt 0:00:04]} 30. fxe5 {[%emt 0:01:14]} Nxe5 {[%emt 0:01:59]} 31. Rh7 {[%emt 0:07:15] Strongly threatening Rh8+.} Kg8 {[%emt 0:00:01] Prevents Rh8+.} 32. Rb7 {[%emt 0:01:59]} (32. Rxh5 $6 Kg7 $16) 32... Ng6 {[%emt 0:01:39]} 33. Be6+ {[%emt 0:03:44]} Kh8 {[%emt 0:00:15]} 34. Bf7 $1 {[%emt 0:00:11]} Kg7 {[%emt 0:01:50]} 35. a5 {[%emt 0:01:34]} (35. Bd5+ $18 Kh6 36. Bxc6) 35... bxa5 {[%emt 0:00:09]} (35... Nxh4 $16 36. Be6+ (36. axb6 axb6 37. Be6+ Kh6 $16) (36. Bxh5+ Kh6 $16) 36... Kh6) 36. bxa5 {[%emt 0:00:02]} Nxh4 {[%emt 0:00:41]} 37. Bxh5+ {[%emt 0:00:21]} Kh6 {[%emt 0:00:02] [#]} 38. Be2 {[%emt 0:00:32]} ({White must play} 38. Bg4 $1 $18) 38... Ng6 $14 {[%emt 0:00:40]} 39. Kd2 {[%emt 0:00:54]} Ne5 {[%emt 0:00:36]} 40. Ke3 {[%emt 0:00:00] And now Kf4 would win.} Kg6 {[%emt 0:00:00] [#]} (40... a6 $16 {was worth a try.} 41. Rb6 Rg8 42. Rxa6 (42. Bxa6 Ra8 $14) 42... Rg3+ 43. Kd2 (43. Kd4 Rg2 $16) 43... Kg5) 41. a6 $1 $18 {[%emt 0:05:02]} Kg5 {[%emt 0:04:17]} 42. Re7 {[%emt 0:03:08]} Kh6 {[%emt 0:07:13]} 43. Rb7 {[%emt 0:01:29] aiming for Kf4.} Kg5 $1 {[%emt 0:01:12]} 44. Rc7 {[%emt 0:07:17]} (44. Rg7+ $18 {is more deadly.} Kh6 45. Rc7) 44... Kg6 $2 {[%emt 0:00:48]} (44... f5 $16) 45. Kf4 {[%emt 0:00:45]} Rd8 {[%emt 0:05:35]} 46. Rxa7 {[%emt 0:00:40]} Rd2 {[%emt 0:00:01]} 47. Ra8 {[%emt 0:08:22][%cal Oa6a7] Threatens to win with a7!} Kg7 $2 {[%emt 0:08:51] [#]} (47... Rxe2 48. a7 Kg7) 48. a7 $1 {[%emt 0:00:16]} Ra2 {[%emt 0:00:09]} (48... Rxe2 49. Rc8) 49. Bg4 {[%emt 0:04:22] Hoping for Be6.} Nd3+ {[%emt 0:06:48]} 50. Ke3 {[%emt 0:00:36]} Nc5 {[%emt 0:00:04]} 51. Kd4 {[%emt 0:01:13]} Nb7 {[%emt 0:00:15] [#]} 52. Rg8+ $3 {[%emt 0:00:31][%mdl 512] Weighted Error Value: White=0.23 (precise) /Black=0.56} 1-0